Workbook

Sheet 学前政府资助
A1: 附件1：
A2: 盱眙县2024年秋季学期学前政府资助经费分配表
A3: 单位：人、元
A4: 序号 | B4: 单位名称 | C4: 生数 | D4: 资助人数 | E4: 资助金额 | G4: 序号 | H4: 单位名称 | I4: 生数 | J4: 资助人数 | K4: 资助金额
A5: 1 | B5: 官滩幼儿园 | C5: 252 | D5: 42 | E5: =D5*500 -> 21000 | G5: 25 | H5: 宣化社区幼儿园 | I5: 497 | J5: 34 | K5: =J5*500 -> 17000
A6: 2 | B6: 马坝幼儿园（含二园） | C6: 426 | D6: 41 | E6: =D6*500 -> 20500 | G6: 26 | H6: 盱城新星幼儿园 | I6: 290 | J6: 18 | K6: 9000
A7: 3 | B7: 古桑街道幼儿园 | C7: 43 | D7: 13 | E7: 6500 | G7: 27 | H7: 皇家花苑幼儿园 | I7: 413 | J7: 6 | K7: 3000
A8: 4 | B8: 穆店幼儿园 | C8: 154 | D8: 23 | E8: 11500 | G8: 28 | H8: 山水名都幼儿园 | I8: 362 | J8: 9 | K8: 4500
A9: 5 | B9: 维桥乡幼儿园 | C9: 179 | D9: 17 | E9: 8500 | G9: 29 | H9: 新舟幼儿园 | I9: 223 | J9: 29 | K9: 14500
A10: 6 | B10: 桂五幼儿园 | C10: 150 | D10: 32 | E10: 16000 | G10: 30 | H10: 管镇博艺幼儿园 | I10: 83 | J10: 36 | K10: 18000
A11: 7 | B11: 河桥幼儿园 | C11: 74 | D11: 24 | E11: 12000 | G11: 32 | H11: 铁佛金色童年幼儿园 | I11: 110 | J11: 54 | K11: 27000
A12: 8 | B12: 黄花塘幼儿园 | C12: 58 | D12: 10 | E12: 5000 | G12: 33 | H12: 天泉湖小博士幼儿园 | I12: 44 | J12: 7 | K12: 3500
A13: 9 | B13: 旧铺幼儿园 | C13: 139 | D13: 28 | E13: 14000 | H13: 民办普惠园小计 | I13: =SUM(I5:I12) -> 2022 | J13: =SUM(J5:J12) -> 193 | K13: =SUM(K5:K12) -> 96500
A14: 10 | B14: 明祖陵幼儿园 | C14: 115 | D14: 28 | E14: 14000
A15: 11 | B15: 天泉湖幼儿园（含古城） | C15: 113 | D15: 27 | E15: 13500
A16: 12 | B16: 鲍集幼儿园（含肖嘴） | C16: 243 | D16: 45 | E16: 22500
A17: 13 | B17: 仇集幼儿园 | C17: 56 | D17: 13 | E17: 6500
A18: 14 | B18: 观音寺幼儿园 | C18: 30 | D18: 10 | E18: 5000
A19: 15 | B19: 管镇幼儿园 | C19: 102 | D19: 23 | E19: 11500
A20: 16 | B20: 淮河幼儿园 | C20: 154 | D20: 20 | E20: 10000
A21: 17 | B21: 铁佛幼儿园 | C21: 34 | D21: 17 | E21: 8500
A22: 18 | B22: 兴隆幼儿园 | C22: 43 | D22: 19 | E22: 9500
A23: 19 | B23: 实验幼儿园（含一、三园、泽兰路、淮建路） | C23: 1456 | D23: 47 | E23: 23500
A24: 20 | B24: 五墩幼儿园（含一园、蓝天） | C24: 918 | D24: 52 | E24: 26000
A25: 21 | B25: 城南幼儿园（含临淮新寓） | C25: 401 | D25: 38 | E25: 19000
A26: 22 | B26: 开发区幼儿园（含南苑、北苑、迎春路） | C26: 570 | D26: 64 | E26: 32000
A27: 23 | B27: 盱城幼儿园（含爱民路） | C27: 520 | D27: 34 | E27: 17000
A28: 24 | B28: 机关幼儿园 | C28: 94 | D28: 10 | E28: 5000
B29: 公办园小计 | C29: =SUM(C5:C28) -> 6324 | D29: =SUM(D5:D28) -> 677 | E29: 338500 | H29: 公民办总计 | I29: =C29+I13 -> 8346 | J29: =D29+J13 -> 870 | K29: =E29+K13 -> 435000

Sheet 义教生活补助
A1: 附件2：
A2: 盱眙县2024年秋季学期义务教育生活补助经费分配表
A3: 单位：人、元
A4: 序号 | B4: 小 学 | C4: 生数 | D4: 原建档立卡和低保人数 | E4: 非原建档、低保的寄宿人数 | F4: 非原建档、低保的非寄宿人数 | G4: 合计资助人数 | H4: 资助金额 | J4: 序号 | K4: 初 中 | L4: 生数 | M4: 其中原建档立卡和低保人数 | N4: 非原建档、低保的寄宿人数 | O4: 非原建档、低保的非寄宿人数 | P4: 合计资助人数 | Q4: 资助金额
A5: 1 | B5: 实验小学 | C5: 8108 | D5: 172 | E5: 0 | F5: 181 | G5: =D5+E5+F5 -> 353 | H5: =D5*750+E5*625+F5*500 -> 219500 | J5: 1 | K5: 第二中学 | L5: 4881 | M5: 153 | N5: 4 | O5: 143 | P5: =M5+N5+O5 -> 300 | Q5: =M5*1000+N5*750+O5*625 -> 245375
A6: 2 | B6: 城南小学 | C6: 1965 | D6: 102 | E6: 0 | F6: 120 | G6: =D6+E6+F6 -> 222 | H6: =D6*750+E6*625+F6*500 -> 136500 | J6: 2 | K6: 第三中学 | L6: 4420 | M6: 283 | N6: 23 | O6: 137 | P6: =M6+N6+O6 -> 443 | Q6: =M6*1000+N6*750+O6*625 -> 385875
A7: 3 | B7: 五墩小学 | C7: 6234 | D7: 220 | E7: 0 | F7: 153 | G7: 373 | H7: 241500 | J7: 3 | K7: 开发区初中 | L7: 949 | M7: 79 | N7: 0 | O7: 36 | P7: 115 | Q7: 101500
A8: 4 | B8: 马坝小学 | C8: 2870 | D8: 232 | E8: 0 | F8: 110 | G8: 342 | H8: 229000 | J8: 4 | K8: 第六中学 | L8: 355 | M8: 45 | N8: 4 | O8: 32 | P8: 81 | Q8: 68000
A9: 5 | B9: 维桥小学 | C9: 483 | D9: 43 | E9: 0 | F9: 47 | G9: 90 | H9: 55750 | J9: 5 | K9: 官滩中学 | L9: 518 | M9: 91 | N9: 11 | O9: 20 | P9: 122 | Q9: 111750
A10: 6 | B10: 三河小学 | C10: 234 | D10: 7 | E10: 0 | F10: 18 | G10: 25 | H10: 14250 | J10: 6 | K10: 维桥中学 | L10: 255 | M10: 39 | N10: 9 | O10: 9 | P10: 57 | Q10: 51375
A11: 7 | B11: 官滩小学 | C11: 664 | D11: 84 | E11: 0 | F11: 36 | G11: 120 | H11: 81000 | J11: 7 | K11: 马坝初中 | L11: 1596 | M11: 191 | N11: 3 | O11: 59 | P11: 253 | Q11: 230125
A12: 8 | B12: 穆店小学 | C12: 508 | D12: 62 | E12: 0 | F12: 24 | G12: 86 | H12: 58500 | J12: 8 | K12: 黄花塘中学 | L12: 185 | M12: 30 | N12: 0 | O12: 18 | P12: 48 | Q12: 41250
A13: 9 | B13: 旧铺小学 | C13: 763 | D13: 64 | E13: 0 | F13: 46 | G13: 110 | H13: 71000 | J13: 9 | K13: 旧铺中学 | L13: 406 | M13: 72 | N13: 14 | O13: 8 | P13: 94 | Q13: 87500
A14: 10 | B14: 黄花塘小学 | C14: 257 | D14: 41 | E14: 0 | F14: 26 | G14: 67 | H14: 43750 | J14: 10 | K14: 穆店中学 | L14: 317 | M14: 60 | N14: 12 | O14: 6 | P14: 78 | Q14: 72750
A15: 11 | B15: 古桑小学 | C15: 300 | D15: 39 | E15: 0 | F15: 39 | G15: 78 | H15: 48750 | J15: 11 | K15: 天泉湖中学 | L15: 457 | M15: 72 | N15: 28 | O15: 8 | P15: 108 | Q15: 98000
A16: 12 | B16: 桂五小学 | C16: 514 | D16: 68 | E16: 7 | F16: 42 | G16: 117 | H16: 76375 | J16: 12 | K16: 桂五中学 | L16: 360 | M16: 60 | N16: 32 | O16: 1 | P16: 93 | Q16: 84625
A17: 13 | B17: 天泉湖小学 | C17: 700 | D17: 82 | E17: 0 | F17: 62 | G17: 144 | H17: 92500 | J17: 13 | K17: 仇集中学 | L17: 214 | M17: 50 | N17: 16 | O17: 2 | P17: 68 | Q17: 63250
A18: 14 | B18: 河桥小学 | C18: 330 | D18: 37 | E18: 0 | F18: 43 | G18: 80 | H18: 49250 | J18: 14 | K18: 河桥中学 | L18: 278 | M18: 47 | N18: 20 | O18: 6 | P18: 73 | Q18: 65750
A19: 15 | B19: 仇集小学 | C19: 278 | D19: 60 | E19: 0 | F19: 15 | G19: 75 | H19: 52500 | J19: 15 | K19: 明祖陵中学 | L19: 238 | M19: 65 | N19: 6 | O19: 6 | P19: =M19+N19+O19 -> 77 | Q19: =M19*1000+N19*750+O19*625 -> 73250
A20: 16 | B20: 淮河小学 | C20: 504 | D20: 56 | E20: 0 | F20: 27 | G20: 83 | H20: 55500 | J20: 16 | K20: 管镇中学 | L20: 264 | M20: 84 | N20: 15 | O20: 4 | P20: 103 | Q20: 97750
A21: 17 | B21: 希望小学 | C21: 258 | D21: 55 | E21: 0 | F21: 33 | G21: 88 | H21: 57750 | J21: 17 | K21: 鲍集中学 | L21: 503 | M21: 130 | N21: 26 | O21: 10 | P21: 166 | Q21: 155750
A22: 18 | B22: 管镇小学 | C22: 470 | D22: 110 | E22: 0 | F22: 37 | G22: 147 | H22: 101000 | J22: 18 | K22: 铁佛中学 | L22: 257 | M22: 57 | N22: 6 | O22: 24 | P22: 87 | Q22: 76500
A23: 19 | B23: 铁佛小学 | C23: 510 | D23: 69 | E23: 0 | F23: 49 | G23: 118 | H23: 76250 | J23: 19 | K23: 兴隆中学 | L23: 104 | M23: 24 | N23: 6 | O23: 0 | P23: 30 | Q23: 28500
A24: 20 | B24: 兴隆小学 | C24: 130 | D24: 37 | E24: 0 | F24: 19 | G24: 56 | H24: 37250 | J24: 20 | K24: 特校初中 | L24: 58 | M24: 13 | N24: 0 | O24: 45 | P24: 58 | Q24: 41125
A25: 21 | B25: 鲍集小学 | C25: 920 | D25: 124 | E25: 0 | F25: 67 | G25: 191 | H25: 126500 | J25: 21 | K25: 实验中学 | L25: 4946 | M25: 274 | N25: 17 | O25: 119 | P25: 410 | Q25: 361125
A26: 22 | B26: 盱城小学 | C26: 1467 | D26: 69 | E26: 0 | F26: 70 | G26: 139 | H26: 86750 | J26: 22 | K26: 第一中学 | L26: 2339 | M26: 71 | N26: 5 | O26: 41 | P26: 117 | Q26: 100375
A27: 23 | B27: 开发区小学 | C27: 1243 | D27: 72 | E27: 0 | F27: 35 | G27: 107 | H27: 71500 | J27: 23 | K27: 二中分校 | L27: 1218 | M27: 70 | N27: 0 | O27: 49 | P27: =SUM(M27:O27) -> 119 | Q27: =M27*1000+N27*750+O27*625 -> 100625
A28: 24 | B28: 特校小学 | C28: 89 | D28: 12 | E28: 0 | F28: 77 | G28: 89 | H28: 47500 | K28: 初中合计 | L28: =SUM(L5:L27) -> 25118 | M28: =SUM(M5:M27) -> 2060 | N28: 257 | O28: 783 | P28: =SUM(P5:P27) -> 3100 | Q28: =SUM(Q5:Q27) -> 2742125
A29: 25 | B29: 第一小学 | C29: 3172 | D29: 58 | E29: 0 | F29: 43 | G29: 101 | H29: 65000
A30: 26 | B30: 宣化小学 | C30: 7288 | D30: 191 | E30: 0 | F30: 110 | G30: 301 | H30: 198250 | K30: 其中中小学原建档立卡提标部分1035000元由县财政负担。
B31: 小学合计 | C31: =SUM(C5:C30) -> 40259 | D31: =SUM(D5:D30) -> 2166 | E31: =SUM(E5:E30) -> 7 | F31: 1529 | G31: 3702 | H31: =SUM(H5:H30) -> 2393375 | K31: 中小学总计 | L31: =C31+L28 -> 65377 | M31: 4226 | N31: 264 | O31: 2312 | P31: 6802 | Q31: 5135500

Sheet 高中助学金
A1: 附件3：
A2: 盱眙县2024年秋季学期普通高中国家助学金经费分配表
A3: 单位：人、元
A4: 单位名称 | B4: 生数 | C4: 资助人数 | D4: 资助金额
A5: 盱眙中学 | B5: 3213 | C5: 250 | D5: =C5*1000 -> 250000
A6: 马坝高中 | B6: 3041 | C6: 503 | D6: =C6*1000 -> 503000
A7: 第二高中 | B7: 2845 | C7: 410 | D7: =C7*1000 -> 410000
A8: 新马中学 | B8: 3414 | C8: 326 | D8: 326000
A9: 都梁中学 | B9: 2364 | C9: 297 | D9: 297000
A10: 第一山中学 | B10: 2354 | C10: 296 | D10: 296000
A11: 合计 | B11: =SUM(B5:B10) -> 17231 | C11: =SUM(C5:C10) -> 2082 | D11: =SUM(D5:D10) -> 2082000

Sheet 中职助学金
A1: 附件4：
A2: 盱眙县2024年秋季学期中职国家助学金经费分配表
A3: 单位：人、元
A4: 单位名称 | B4: 一二年级生数 | C4: 其中涉农专业人数 | D4: 资助人数 | E4: 资助金额
A5: 盱眙中等专业学校 | B5: 1703 | C5: 0 | D5: 315 | E5: =D5*1000 -> 315000
A6: 盱眙技师学院 | B6: 981 | C6: 0 | D6: 152 | E6: =D6*1000 -> 152000
A7: 合 计 | B7: =SUM(B5:B6) -> 2684 | C7: =SUM(C5:C6) -> 0 | D7: 467 | E7: 467000
